[Event "*** SCC Grand Prix: Titled Tuesday Blitz"]
[Site "Chess.com"]
[Date "2020.08.11"]
[Round "8"]
[White "bugbug01052018"]
[Black "Oleg_Papayan"]
[Result "0-1"]
[WhiteElo "2148"]
[BlackElo "2462"]
[TimeControl "180+1"]
[EndTime "11:34:55 PDT"]
[Termination "Oleg_Papayan won on time"]

1. e4 {[%clk 0:03:00.9]} 1... c5 {[%clk 0:02:57.3]} 2. Nf3 {[%clk 0:02:59.8]}
2... d6 {[%clk 0:02:52.5]} 3. d4 {[%clk 0:02:58.4]} 3... cxd4 {[%clk 0:02:53.4]}
4. Nxd4 {[%clk 0:02:59.1]} 4... Nf6 {[%clk 0:02:53.9]} 5. Nc3 {[%clk 0:02:56.5]}
5... a6 {[%clk 0:02:54.5]} 6. Be2 {[%clk 0:02:46.9]} 6... e5 {[%clk 0:02:52.3]}
7. Nb3 {[%clk 0:02:42.1]} 7... Be6 {[%clk 0:02:52.1]} 8. O-O {[%clk 0:02:39.5]}
8... Be7 {[%clk 0:02:52.2]} 9. Be3 {[%clk 0:02:15]} 9... O-O {[%clk 0:02:51]}
10. Nd5 {[%clk 0:02:11.1]} 10... Nxd5 {[%clk 0:02:36.4]} 11. exd5 {[%clk
0:02:09.8]} 11... Bf5 {[%clk 0:02:37.3]} 12. c4 {[%clk 0:02:09.3]} 12... Nd7
{[%clk 0:02:37]} 13. Rc1 {[%clk 0:02:07.3]} 13... Rc8 {[%clk 0:02:28.2]} 14. Qd2
{[%clk 0:02:06.9]} 14... Bg6 {[%clk 0:02:25.2]} 15. Na5 {[%clk 0:01:57.8]} 15...
Qc7 {[%clk 0:02:21.4]} 16. b4 {[%clk 0:01:51.4]} 16... f5 {[%clk 0:02:18.7]} 17.
f4 {[%clk 0:01:34.7]} 17... Nf6 {[%clk 0:01:42.4]} 18. fxe5 {[%clk 0:01:19.4]}
18... Ne4 {[%clk 0:01:42.4]} 19. Qb2 {[%clk 0:01:14.3]} 19... dxe5 {[%clk
0:01:31.8]} 20. c5 {[%clk 0:01:12.5]} 20... Bf6 {[%clk 0:00:59.9]} 21. d6 {[%clk
0:01:02]} 21... Qd7 {[%clk 0:01:00]} 22. Bc4+ {[%clk 0:01:01.5]} 22... Kh8
{[%clk 0:00:50.3]} 23. Bd5 {[%clk 0:00:59.7]} 23... f4 {[%clk 0:00:50.2]} 24.
Bf2 {[%clk 0:00:44]} 24... b6 {[%clk 0:00:50.5]} 25. Bxe4 {[%clk 0:00:38.1]}
25... Bxe4 {[%clk 0:00:46]} 26. Nb3 {[%clk 0:00:38.3]} 26... Qg4 {[%clk
0:00:33.1]} 27. Be1 {[%clk 0:00:28.1]} 27... f3 {[%clk 0:00:28.9]} 28. g3 {[%clk
0:00:17.2]} 28... Bg5 {[%clk 0:00:29.3]} 29. Rc2 {[%clk 0:00:14]} 29... Bxc2
{[%clk 0:00:16.6]} 30. Qxc2 {[%clk 0:00:13.9]} 30... e4 {[%clk 0:00:17.3]} 31.
Nd4 {[%clk 0:00:10.5]} 31... e3 {[%clk 0:00:16.5]} 32. Qd3 {[%clk 0:00:08.8]}
32... bxc5 {[%clk 0:00:12.5]} 33. bxc5 {[%clk 0:00:08.7]} 33... Rxc5 {[%clk
0:00:12.8]} 34. Nxf3 {[%clk 0:00:08.1]} 34... Rxf3 {[%clk 0:00:10.9]} 35. Rxf3
{[%clk 0:00:08.4]} 35... Qxf3 {[%clk 0:00:11.8]} 36. d7 {[%clk 0:00:09.1]} 36...
Rd5 {[%clk 0:00:07.2]} 37. d8=Q+ {[%clk 0:00:09.1]} 37... Bxd8 {[%clk
0:00:06.4]} 38. Qa3 {[%clk 0:00:07.6]} 38... Rd7 {[%clk 0:00:04.3]} 39. h4
{[%clk 0:00:04.4]} 39... Rf7 {[%clk 0:00:03.8]} 40. Qa4 {[%clk 0:00:03.6]} 40...
Qf1+ {[%clk 0:00:03.2]} 41. Kh2 {[%clk 0:00:04]} 41... Rf8 {[%clk 0:00:01.9]}
42. Qb4 {[%clk 0:00:03.6]} 42... Qf7 {[%clk 0:00:02.3]} 43. Bc3 {[%clk
0:00:03.1]} 43... Qe7 {[%clk 0:00:02.7]} 44. Qc4 {[%clk 0:00:02.8]} 44... e2
{[%clk 0:00:03.1]} 45. Be1 {[%clk 0:00:02.9]} 45... h6 {[%clk 0:00:03.3]} 46.
Bb4 {[%clk 0:00:03]} 46... Qf7 {[%clk 0:00:03.1]} 47. Qc3 {[%clk 0:00:02.9]}
47... Re8 {[%clk 0:00:03]} 0-1

[Event "*** SCC Grand Prix: Titled Tuesday Blitz"]
[Site "Chess.com"]
[Date "2020.08.11"]
[Round "8"]
[White "Maksimus1998"]
[Black "Region_07"]
[Result "1-0"]
[WhiteElo "2525"]
[BlackElo "2415"]
[TimeControl "180+1"]
[EndTime "11:34:58 PDT"]
[Termination "Maksimus1998 won on time"]

1. e4 {[%clk 0:03:00.9]} 1... Nc6 {[%clk 0:02:56.5]} 2. Nf3 {[%clk 0:02:57.9]}
2... d6 {[%clk 0:02:55.9]} 3. d4 {[%clk 0:02:56.4]} 3... g6 {[%clk 0:02:56.2]}
4. Bd3 {[%clk 0:02:53.5]} 4... Bg7 {[%clk 0:02:55.7]} 5. c3 {[%clk 0:02:53.9]}
5... Bg4 {[%clk 0:02:37.4]} 6. Nbd2 {[%clk 0:02:52.5]} 6... e5 {[%clk
0:02:28.3]} 7. d5 {[%clk 0:02:51.8]} 7... Nb8 {[%clk 0:02:27.7]} 8. h3 {[%clk
0:02:52.2]} 8... Bc8 {[%clk 0:02:02.2]} 9. c4 {[%clk 0:02:46.9]} 9... Nf6 {[%clk
0:01:58.5]} 10. g4 {[%clk 0:02:41]} 10... O-O {[%clk 0:01:57.6]} 11. Nf1 {[%clk
0:02:40.5]} 11... Nbd7 {[%clk 0:01:53.9]} 12. Ng3 {[%clk 0:02:40.3]} 12... Nc5
{[%clk 0:01:53.4]} 13. Bc2 {[%clk 0:02:40.1]} 13... a5 {[%clk 0:01:51.9]} 14.
Be3 {[%clk 0:02:40.6]} 14... c6 {[%clk 0:01:50.1]} 15. g5 {[%clk 0:02:32.1]}
15... Nfd7 {[%clk 0:01:39.9]} 16. dxc6 {[%clk 0:02:30.7]} 16... bxc6 {[%clk
0:01:40.5]} 17. Qxd6 {[%clk 0:02:30]} 17... Qb6 {[%clk 0:01:37.2]} 18. b3 {[%clk
0:02:19.1]} 18... Re8 {[%clk 0:01:32.5]} 19. Qd2 {[%clk 0:02:18.4]} 19... Qc7
{[%clk 0:01:17.4]} 20. Rd1 {[%clk 0:02:09.4]} 20... Bf8 {[%clk 0:01:11.4]} 21.
h4 {[%clk 0:02:06.2]} 21... Nxb3 {[%clk 0:01:07.1]} 22. Qe2 {[%clk 0:01:56.2]}
22... Nbc5 {[%clk 0:00:56]} 23. h5 {[%clk 0:01:55.1]} 23... Ne6 {[%clk
0:00:48.4]} 24. Kf1 {[%clk 0:01:48.5]} 24... Nf4 {[%clk 0:00:43.8]} 25. Qd2
{[%clk 0:01:47.4]} 25... Nc5 {[%clk 0:00:40.4]} 26. hxg6 {[%clk 0:01:38.3]}
26... hxg6 {[%clk 0:00:39]} 27. Ne2 {[%clk 0:01:36.5]} 27... Bh3+ {[%clk
0:00:36.1]} 28. Kg1 {[%clk 0:01:18.4]} 28... Rad8 {[%clk 0:00:34.9]} 29. Qe1
{[%clk 0:01:18.5]} 29... Qc8 {[%clk 0:00:23.5]} 30. Ng3 {[%clk 0:00:58.9]} 30...
Qg4 {[%clk 0:00:20.6]} 31. Nh2 {[%clk 0:00:58.8]} 31... Qxg5 {[%clk 0:00:15.6]}
32. Nf3 {[%clk 0:00:55.2]} 32... Qg4 {[%clk 0:00:11.6]} 33. Nh2 {[%clk
0:00:55.4]} 33... Qg5 {[%clk 0:00:09.1]} 34. Nf3 {[%clk 0:00:55.2]} 34... Qf6
{[%clk 0:00:09]} 35. Bxf4 {[%clk 0:00:51.8]} 35... exf4 {[%clk 0:00:09.9]} 36.
Rxh3 {[%clk 0:00:49.3]} 36... fxg3 {[%clk 0:00:09.9]} 37. Rxg3 {[%clk
0:00:50.2]} 37... Rxd1 {[%clk 0:00:08.6]} 38. Qxd1 {[%clk 0:00:50]} 38... Nxe4
{[%clk 0:00:09]} 39. Bxe4 {[%clk 0:00:46.5]} 39... Rxe4 {[%clk 0:00:09.9]} 40.
Ng5 {[%clk 0:00:44.1]} 40... Rf4 {[%clk 0:00:08.6]} 41. Qd2 {[%clk 0:00:37.4]}
41... Bc5 {[%clk 0:00:08.3]} 42. Nh3 {[%clk 0:00:34.2]} 42... Rf3 {[%clk
0:00:06.4]} 43. Kg2 {[%clk 0:00:27.6]} 43... Rxg3+ {[%clk 0:00:05.8]} 44. fxg3
{[%clk 0:00:28.5]} 44... Qd4 {[%clk 0:00:05.2]} 45. Qxd4 {[%clk 0:00:25.6]}
45... Bxd4 {[%clk 0:00:06.1]} 46. Kf3 {[%clk 0:00:26.5]} 46... Kg7 {[%clk
0:00:05.5]} 47. Ke4 {[%clk 0:00:26.6]} 47... Bc5 {[%clk 0:00:04.9]} 48. g4
{[%clk 0:00:25.4]} 48... Kf6 {[%clk 0:00:05.2]} 49. g5+ {[%clk 0:00:25.5]} 49...
Ke6 {[%clk 0:00:05.7]} 50. Nf4+ {[%clk 0:00:25.7]} 50... Kd6 {[%clk 0:00:05.3]}
51. Nd3 {[%clk 0:00:26.1]} 51... Ba3 {[%clk 0:00:03.7]} 52. Ne5 {[%clk
0:00:25.4]} 52... Bc1 {[%clk 0:00:01.1]} 53. Nxf7+ {[%clk 0:00:24.1]} 53... Ke6
{[%clk 0:00:01.3]} 54. Ne5 {[%clk 0:00:23.2]} 54... Bxg5 {[%clk 0:00:01.4]} 55.
Nxg6 {[%clk 0:00:21.8]} 1-0

[Event "*** SCC Grand Prix: Titled Tuesday Blitz"]
[Site "Chess.com"]
[Date "2020.08.11"]
[Round "8"]
[White "maximnovik"]
[Black "Meri-Arabidze"]
[Result "0-1"]
[WhiteElo "2458"]
[BlackElo "2602"]
[TimeControl "180+1"]
[EndTime "11:35:00 PDT"]
[Termination "Meri-Arabidze won on time"]

1. d4 {[%clk 0:02:59.5]} 1... d5 {[%clk 0:02:59.9]} 2. c4 {[%clk 0:02:57.7]}
2... e6 {[%clk 0:03:00.2]} 3. Nc3 {[%clk 0:02:57.7]} 3... Nf6 {[%clk 0:03:00.4]}
4. cxd5 {[%clk 0:02:57.5]} 4... exd5 {[%clk 0:03:01.3]} 5. Bg5 {[%clk
0:02:56.5]} 5... Nbd7 {[%clk 0:03:01.5]} 6. e3 {[%clk 0:02:56.8]} 6... Be7
{[%clk 0:03:01.6]} 7. Bd3 {[%clk 0:02:57.2]} 7... c6 {[%clk 0:03:02]} 8. Qc2
{[%clk 0:02:57.6]} 8... O-O {[%clk 0:03:02]} 9. Nge2 {[%clk 0:02:56.5]} 9... Re8
{[%clk 0:03:02.5]} 10. O-O-O {[%clk 0:02:52.4]} 10... Nf8 {[%clk 0:03:01.3]} 11.
Kb1 {[%clk 0:02:42.5]} 11... b5 {[%clk 0:03:01.2]} 12. Nf4 {[%clk 0:02:37.3]}
12... a5 {[%clk 0:02:58.3]} 13. h4 {[%clk 0:02:33.4]} 13... a4 {[%clk
0:02:56.4]} 14. Nce2 {[%clk 0:02:32.6]} 14... Bd7 {[%clk 0:02:50.5]} 15. Bf5
{[%clk 0:02:14.3]} 15... Rc8 {[%clk 0:02:47]} 16. Ng3 {[%clk 0:02:11.3]} 16...
c5 {[%clk 0:02:46.3]} 17. Bxd7 {[%clk 0:02:08.9]} 17... Qxd7 {[%clk 0:02:44.1]}
18. Qf5 {[%clk 0:02:08.1]} 18... Qb7 {[%clk 0:02:18]} 19. Bxf6 {[%clk
0:02:06.9]} 19... Bxf6 {[%clk 0:02:18.4]} 20. Nxd5 {[%clk 0:02:06.8]} 20... Bd8
{[%clk 0:02:11.2]} 21. dxc5 {[%clk 0:02:06.1]} 21... Ne6 {[%clk 0:02:01.5]} 22.
Ne4 {[%clk 0:01:59.2]} 22... Be7 {[%clk 0:01:40.6]} 23. Nxe7+ {[%clk 0:01:40.2]}
23... Qxe7 {[%clk 0:01:41.5]} 24. Rd5 {[%clk 0:01:23.4]} 24... Nc7 {[%clk
0:01:32.7]} 25. Nd6 {[%clk 0:01:09.2]} 25... Nxd5 {[%clk 0:01:32.8]} 26. Qxd5
{[%clk 0:00:56]} 26... Rcd8 {[%clk 0:01:31.9]} 27. Rd1 {[%clk 0:00:50.8]} 27...
a3 {[%clk 0:01:27.5]} 28. bxa3 {[%clk 0:00:48]} 28... Rf8 {[%clk 0:01:21.6]} 29.
Rd4 {[%clk 0:00:46.9]} 29... Ra8 {[%clk 0:01:11]} 30. Kb2 {[%clk 0:00:43.8]}
30... Qa7 {[%clk 0:01:10]} 31. Rd3 {[%clk 0:00:42]} 31... b4 {[%clk 0:01:04.2]}
32. axb4 {[%clk 0:00:40.1]} 32... Rfb8 {[%clk 0:01:03.8]} 33. Rb3 {[%clk
0:00:33]} 33... Qxa2+ {[%clk 0:01:01.8]} 34. Kc3 {[%clk 0:00:33]} 34... Qa1+
{[%clk 0:01:01.5]} 35. Kc4 {[%clk 0:00:23.9]} 35... Qc1+ {[%clk 0:01:01.4]} 36.
Rc3 {[%clk 0:00:22.9]} 36... Qf1+ {[%clk 0:01:01]} 37. Qd3 {[%clk 0:00:13.5]}
37... Qxf2 {[%clk 0:01:00.1]} 38. Rb3 {[%clk 0:00:11.6]} 38... Qxh4+ {[%clk
0:00:58.7]} 39. e4 {[%clk 0:00:10.4]} 39... Qe7 {[%clk 0:00:54.4]} 40. Qd5
{[%clk 0:00:10.1]} 40... Ra1 {[%clk 0:00:50.8]} 41. c6 {[%clk 0:00:08.2]} 41...
Rc1+ {[%clk 0:00:46.7]} 42. Rc3 {[%clk 0:00:08.1]} 42... Rb1 {[%clk 0:00:40.4]}
43. b5 {[%clk 0:00:07.7]} 43... Qa7 {[%clk 0:00:37.8]} 44. Qc5 {[%clk 0:00:04]}
44... Qa4+ {[%clk 0:00:34.3]} 45. Kd5 {[%clk 0:00:03.8]} 45... Rd1+ {[%clk
0:00:30.9]} 46. Ke5 {[%clk 0:00:03.7]} 46... f6+ {[%clk 0:00:17.1]} 47. Ke6
{[%clk 0:00:03.7]} 47... Qa2+ {[%clk 0:00:16.9]} 48. Rc4 {[%clk 0:00:03.1]}
48... Rxd6+ {[%clk 0:00:14.7]} 49. Kxd6 {[%clk 0:00:02.4]} 49... Rd8+ {[%clk
0:00:13.3]} 50. Kc7 {[%clk 0:00:02.2]} 50... Qa8 {[%clk 0:00:13.2]} 0-1

[Event "*** SCC Grand Prix: Titled Tuesday Blitz"]
[Site "Chess.com"]
[Date "2020.08.11"]
[Round "8"]
[White "viktorskliarov"]
[Black "GregShahade"]
[Result "1/2-1/2"]
[WhiteElo "2598"]
[BlackElo "2720"]
[TimeControl "180+1"]
[EndTime "11:35:01 PDT"]
[Termination "Game drawn by stalemate"]

1. e4 {[%clk 0:03:00.9]} 1... e5 {[%clk 0:03:00.1]} 2. Nc3 {[%clk 0:02:58.8]}
2... Nf6 {[%clk 0:02:59.7]} 3. Bc4 {[%clk 0:02:58.2]} 3... Nc6 {[%clk
0:02:58.7]} 4. d3 {[%clk 0:02:57.4]} 4... Bc5 {[%clk 0:02:57.8]} 5. a3 {[%clk
0:02:54.8]} 5... O-O {[%clk 0:02:52.3]} 6. h3 {[%clk 0:02:53.3]} 6... h6 {[%clk
0:02:44]} 7. Nge2 {[%clk 0:02:52.9]} 7... Nd4 {[%clk 0:02:39.9]} 8. Nxd4 {[%clk
0:02:43.2]} 8... exd4 {[%clk 0:02:37]} 9. Ne2 {[%clk 0:02:35.9]} 9... d5 {[%clk
0:02:37]} 10. exd5 {[%clk 0:02:36.4]} 10... Nxd5 {[%clk 0:02:36.2]} 11. O-O
{[%clk 0:02:36.9]} 11... Be6 {[%clk 0:02:28]} 12. Ng3 {[%clk 0:02:24.9]} 12...
c6 {[%clk 0:02:21.2]} 13. Qf3 {[%clk 0:02:15]} 13... Re8 {[%clk 0:02:14.4]} 14.
Bd2 {[%clk 0:02:11.1]} 14... Qh4 {[%clk 0:01:54.4]} 15. Rae1 {[%clk 0:02:05]}
15... Rad8 {[%clk 0:01:35.9]} 16. Nf5 {[%clk 0:01:43.4]} 16... Qf6 {[%clk
0:01:31]} 17. Nxh6+ {[%clk 0:01:43.4]} 17... gxh6 {[%clk 0:01:16.1]} 18. Bxd5
{[%clk 0:01:42.9]} 18... Qxf3 {[%clk 0:01:16.3]} 19. Bxf3 {[%clk 0:01:43.4]}
19... Kg7 {[%clk 0:01:15.1]} 20. Bf4 {[%clk 0:01:38.6]} 20... Be7 {[%clk
0:01:14.2]} 21. Be5+ {[%clk 0:01:34.8]} 21... Bf6 {[%clk 0:01:14.4]} 22. Bxf6+
{[%clk 0:01:34.9]} 22... Kxf6 {[%clk 0:01:15.3]} 23. Be4 {[%clk 0:01:22.6]}
23... Rc8 {[%clk 0:01:12.8]} 24. f4 {[%clk 0:01:19.2]} 24... b6 {[%clk
0:01:13.1]} 25. Kf2 {[%clk 0:01:16.7]} 25... c5 {[%clk 0:01:13.2]} 26. b3 {[%clk
0:01:15.9]} 26... b5 {[%clk 0:01:11.8]} 27. Kf3 {[%clk 0:01:07.2]} 27... c4
{[%clk 0:01:10.6]} 28. bxc4 {[%clk 0:01:04.3]} 28... bxc4 {[%clk 0:01:11.5]} 29.
g4 {[%clk 0:01:04.4]} 29... c3 {[%clk 0:01:06.6]} 30. h4 {[%clk 0:01:03]} 30...
Rc5 {[%clk 0:01:07.2]} 31. g5+ {[%clk 0:01:01.6]} 31... Kg7 {[%clk 0:01:07.3]}
32. Rb1 {[%clk 0:00:48.9]} 32... h5 {[%clk 0:01:05.1]} 33. Rb4 {[%clk
0:00:43.7]} 33... Rd8 {[%clk 0:01:04.4]} 34. Rfb1 {[%clk 0:00:41.3]} 34... Ra5
{[%clk 0:00:59.2]} 35. a4 {[%clk 0:00:36.5]} 35... Rd6 {[%clk 0:00:53.4]} 36.
Rb7 {[%clk 0:00:26.8]} 36... Rxa4 {[%clk 0:00:43.2]} 37. f5 {[%clk 0:00:27]}
37... Bc8 {[%clk 0:00:29.9]} 38. Rc7 {[%clk 0:00:23.8]} 38... Rd8 {[%clk
0:00:28.1]} 39. g6 {[%clk 0:00:23.1]} 39... Rf8 {[%clk 0:00:27.7]} 40. Rb8
{[%clk 0:00:19.5]} 40... Bxf5 {[%clk 0:00:23.9]} 41. Rxf8 {[%clk 0:00:14.6]}
41... Bxe4+ {[%clk 0:00:21]} 42. Kxe4 {[%clk 0:00:14.9]} 42... Kxf8 {[%clk
0:00:20.5]} 43. Rxf7+ {[%clk 0:00:14.1]} 43... Kg8 {[%clk 0:00:20.7]} 44. Rd7
{[%clk 0:00:14]} 44... Ra2 {[%clk 0:00:20.5]} 45. Kxd4 {[%clk 0:00:07.8]} 45...
Rxc2 {[%clk 0:00:20.5]} 46. Rxa7 {[%clk 0:00:08.3]} 46... Rc1 {[%clk 0:00:20.2]}
47. Rc7 {[%clk 0:00:08]} 47... c2 {[%clk 0:00:20.5]} 48. Kd5 {[%clk 0:00:08]}
48... Rd1 {[%clk 0:00:18.3]} 49. Rxc2 {[%clk 0:00:06.8]} 49... Rxd3+ {[%clk
0:00:18.5]} 50. Ke6 {[%clk 0:00:07.3]} 50... Rf3 {[%clk 0:00:17.8]} 51. Rc7
{[%clk 0:00:05.8]} 51... Rf4 {[%clk 0:00:17.5]} 52. Rf7 {[%clk 0:00:04.2]} 52...
Rxf7 {[%clk 0:00:14.7]} 53. gxf7+ {[%clk 0:00:03.9]} 53... Kf8 {[%clk
0:00:15.1]} 54. Kf6 {[%clk 0:00:04]} 1/2-1/2

[Event "*** SCC Grand Prix: Titled Tuesday Blitz"]
[Site "Chess.com"]
[Date "2020.08.11"]
[Round "8"]
[White "keepitcool9499"]
[Black "gurelediz"]
[Result "0-1"]
[WhiteElo "2646"]
[BlackElo "2558"]
[TimeControl "180+1"]
[EndTime "11:35:04 PDT"]
[Termination "gurelediz won by checkmate"]

1. d4 {[%clk 0:03:00.9]} 1... Nf6 {[%clk 0:02:59.4]} 2. c4 {[%clk 0:03:01.8]}
2... e6 {[%clk 0:02:59.5]} 3. Nc3 {[%clk 0:02:59.6]} 3... Bb4 {[%clk 0:02:59]}
4. Bd2 {[%clk 0:03:00.1]} 4... O-O {[%clk 0:02:58.4]} 5. e3 {[%clk 0:02:57.9]}
5... d5 {[%clk 0:02:56.2]} 6. Nf3 {[%clk 0:02:57.8]} 6... c6 {[%clk 0:02:52]} 7.
a3 {[%clk 0:02:53.4]} 7... Bxc3 {[%clk 0:02:51.9]} 8. Bxc3 {[%clk 0:02:54.3]}
8... Ne4 {[%clk 0:02:52.5]} 9. Qc2 {[%clk 0:02:51.2]} 9... Nd7 {[%clk
0:02:49.4]} 10. Bd3 {[%clk 0:02:48.2]} 10... f5 {[%clk 0:02:49.1]} 11. O-O
{[%clk 0:02:45]} 11... Rf6 {[%clk 0:02:44.4]} 12. b4 {[%clk 0:02:40]} 12... Rh6
{[%clk 0:02:34.6]} 13. a4 {[%clk 0:02:34.4]} 13... g5 {[%clk 0:02:20.4]} 14. Ne5
{[%clk 0:02:26.9]} 14... g4 {[%clk 0:01:29]} 15. g3 {[%clk 0:02:22.9]} 15...
Nxe5 {[%clk 0:01:13.3]} 16. dxe5 {[%clk 0:02:23.8]} 16... Ng5 {[%clk 0:01:13.8]}
17. h4 {[%clk 0:02:18.2]} 17... gxh3 {[%clk 0:00:56.1]} 18. f3 {[%clk
0:02:13.3]} 18... Bd7 {[%clk 0:00:50.1]} 19. Rad1 {[%clk 0:02:05.9]} 19... Kh8
{[%clk 0:00:49.4]} 20. Kh2 {[%clk 0:02:01.5]} 20... Qf8 {[%clk 0:00:40.7]} 21.
Bd2 {[%clk 0:01:50.7]} 21... Qg7 {[%clk 0:00:37.7]} 22. e4 {[%clk 0:01:48.8]}
22... fxe4 {[%clk 0:00:33.8]} 23. fxe4 {[%clk 0:01:49.7]} 23... Rg8 {[%clk
0:00:32.6]} 24. Bf4 {[%clk 0:01:46.1]} 24... dxc4 {[%clk 0:00:29.3]} 25. Bxc4
{[%clk 0:01:43.1]} 25... Bc8 {[%clk 0:00:29.5]} 26. Rd2 {[%clk 0:01:33.1]} 26...
Rg6 {[%clk 0:00:26.7]} 27. Be2 {[%clk 0:01:20.4]} 27... Nf7 {[%clk 0:00:13.6]}
28. Qc3 {[%clk 0:01:16.2]} 28... Ng5 {[%clk 0:00:09.3]} 29. Qe3 {[%clk
0:01:08.9]} 29... Qe7 {[%clk 0:00:07.4]} 30. Bh5 {[%clk 0:01:06]} 30... R6g7
{[%clk 0:00:07.9]} 31. Rdf2 {[%clk 0:00:55.5]} 31... Bd7 {[%clk 0:00:08.3]} 32.
Rd2 {[%clk 0:00:50]} 32... Be8 {[%clk 0:00:08.3]} 33. Bxe8 {[%clk 0:00:48.1]}
33... Qxe8 {[%clk 0:00:09.2]} 34. Bxg5 {[%clk 0:00:46]} 34... Rxg5 {[%clk
0:00:10.1]} 35. Rf3 {[%clk 0:00:43.7]} 35... Qh5 {[%clk 0:00:10.4]} 36. Rd7
{[%clk 0:00:40.7]} 36... Qg6 {[%clk 0:00:10.2]} 37. Rxb7 {[%clk 0:00:37.4]}
37... Rg4 {[%clk 0:00:09.1]} 38. Rff7 {[%clk 0:00:26]} 38... Qh5 {[%clk
0:00:01.1]} 39. Rxh7+ {[%clk 0:00:22.7]} 39... Qxh7 {[%clk 0:00:02]} 40. Rxh7+
{[%clk 0:00:21.5]} 40... Kxh7 {[%clk 0:00:02.9]} 41. Kxh3 {[%clk 0:00:21.1]}
41... R8g7 {[%clk 0:00:03.8]} 42. Qf3 {[%clk 0:00:19.9]} 42... R4g5 {[%clk
0:00:03.7]} 43. Qf4 {[%clk 0:00:18.8]} 43... R5g6 {[%clk 0:00:03.7]} 44. Qh4+
{[%clk 0:00:18.4]} 44... Rh6 {[%clk 0:00:03.9]} 45. Qxh6+ {[%clk 0:00:17.4]}
45... Kxh6 {[%clk 0:00:04.8]} 46. g4 {[%clk 0:00:18.2]} 46... Kg5 {[%clk
0:00:05.1]} 47. Kg3 {[%clk 0:00:19.1]} 47... Rd7 {[%clk 0:00:05.6]} 48. Kf3
{[%clk 0:00:18.9]} 48... Rd3+ {[%clk 0:00:06.1]} 49. Ke2 {[%clk 0:00:19.8]}
49... Rb3 {[%clk 0:00:06.7]} 50. b5 {[%clk 0:00:19.3]} 50... cxb5 {[%clk
0:00:06.9]} 51. axb5 {[%clk 0:00:20.2]} 51... Rxb5 {[%clk 0:00:07.4]} 52. Kd3
{[%clk 0:00:20.3]} 52... Rxe5 {[%clk 0:00:07.8]} 53. Kc4 {[%clk 0:00:21.2]}
53... Rxe4+ {[%clk 0:00:07.6]} 54. Kc5 {[%clk 0:00:22.1]} 54... Rxg4 {[%clk
0:00:08.1]} 55. Kd6 {[%clk 0:00:23]} 55... Re4 {[%clk 0:00:07.7]} 56. Kc5 {[%clk
0:00:22.9]} 56... a5 {[%clk 0:00:08.3]} 57. Kb5 {[%clk 0:00:22.4]} 57... a4
{[%clk 0:00:09.2]} 58. Kc5 {[%clk 0:00:23.1]} 58... a3 {[%clk 0:00:09.8]} 59.
Kd6 {[%clk 0:00:24]} 59... a2 {[%clk 0:00:10.7]} 60. Ke7 {[%clk 0:00:24.9]}
60... a1=Q {[%clk 0:00:11.1]} 61. Kd6 {[%clk 0:00:25.8]} 61... Qa6+ {[%clk
0:00:11]} 62. Ke7 {[%clk 0:00:26.7]} 62... Rd4 {[%clk 0:00:10.3]} 63. Kf7 {[%clk
0:00:27.6]} 63... Qb7+ {[%clk 0:00:10.1]} 64. Ke8 {[%clk 0:00:27.2]} 64... Rd7
{[%clk 0:00:09.1]} 65. Kf8 {[%clk 0:00:26.9]} 65... Qc8# {[%clk 0:00:10]} 0-1

[Event "*** SCC Grand Prix: Titled Tuesday Blitz"]
[Site "Chess.com"]
[Date "2020.08.11"]
[Round "8"]
[White "Steven_Rojas"]
[Black "Lagravesamuell"]
[Result "1-0"]
[WhiteElo "2478"]
[BlackElo "2604"]
[TimeControl "180+1"]
[EndTime "11:35:04 PDT"]
[Termination "Steven_Rojas won by checkmate"]

1. c4 {[%clk 0:03:00.9]} 1... Nf6 {[%clk 0:02:59.8]} 2. Nc3 {[%clk 0:03:01]}
2... e5 {[%clk 0:02:56.9]} 3. Nf3 {[%clk 0:03:00.5]} 3... Nc6 {[%clk 0:02:57.1]}
4. e3 {[%clk 0:03:00.6]} 4... d5 {[%clk 0:02:56.4]} 5. cxd5 {[%clk 0:02:59.4]}
5... Nxd5 {[%clk 0:02:57]} 6. Bb5 {[%clk 0:02:59.5]} 6... Nxc3 {[%clk
0:02:56.9]} 7. bxc3 {[%clk 0:02:59.3]} 7... Bd6 {[%clk 0:02:57.5]} 8. d4 {[%clk
0:02:56.7]} 8... exd4 {[%clk 0:02:54.3]} 9. cxd4 {[%clk 0:02:55.6]} 9... O-O
{[%clk 0:02:54.6]} 10. O-O {[%clk 0:02:53.8]} 10... Bg4 {[%clk 0:02:42.5]} 11.
h3 {[%clk 0:02:15.3]} 11... Bh5 {[%clk 0:02:41]} 12. Re1 {[%clk 0:02:08.5]}
12... Qf6 {[%clk 0:02:27.3]} 13. Be2 {[%clk 0:01:57.9]} 13... Rad8 {[%clk
0:02:21.7]} 14. Nd2 {[%clk 0:01:34.4]} 14... Bxe2 {[%clk 0:02:16.5]} 15. Qxe2
{[%clk 0:01:31.7]} 15... Rfe8 {[%clk 0:02:16.9]} 16. Bb2 {[%clk 0:01:23.5]}
16... Bb4 {[%clk 0:01:58.5]} 17. Qd3 {[%clk 0:01:03.5]} 17... Ne5 {[%clk
0:01:27.1]} 18. Qc2 {[%clk 0:01:00.6]} 18... Ng6 {[%clk 0:01:19.1]} 19. Red1
{[%clk 0:00:40.3]} 19... Nh4 {[%clk 0:01:17.7]} 20. Nf1 {[%clk 0:00:15]} 20...
Qg5 {[%clk 0:01:11.6]} 21. g3 {[%clk 0:00:10.9]} 21... Bd6 {[%clk 0:01:03.8]}
22. Qe2 {[%clk 0:00:08.2]} 22... h5 {[%clk 0:00:57]} 23. e4 {[%clk 0:00:06.7]}
23... f6 {[%clk 0:00:50]} 24. Kh2 {[%clk 0:00:04]} 24... Ng6 {[%clk 0:00:47.8]}
25. Qf3 {[%clk 0:00:03.3]} 25... h4 {[%clk 0:00:40.1]} 26. Bc1 {[%clk
0:00:03.7]} 26... hxg3+ {[%clk 0:00:35.3]} 27. fxg3 {[%clk 0:00:04.6]} 27... Qa5
{[%clk 0:00:23.9]} 28. Be3 {[%clk 0:00:05.1]} 28... Qb5 {[%clk 0:00:16.8]} 29.
Bf2 {[%clk 0:00:04.5]} 29... Qc6 {[%clk 0:00:14.2]} 30. d5 {[%clk 0:00:04.4]}
30... Qc3 {[%clk 0:00:09.5]} 31. Qxc3 {[%clk 0:00:03.3]} 31... Rxe4 {[%clk
0:00:08.1]} 32. Qc2 {[%clk 0:00:02.8]} 32... Rde8 {[%clk 0:00:07.8]} 33. Re1
{[%clk 0:00:03.3]} 33... f5 {[%clk 0:00:07.7]} 34. Rxe4 {[%clk 0:00:03.1]} 34...
fxe4 {[%clk 0:00:08.6]} 35. Re1 {[%clk 0:00:03.4]} 35... Ne5 {[%clk 0:00:08]}
36. Rxe4 {[%clk 0:00:03.5]} 36... Rf8 {[%clk 0:00:08.5]} 37. Kg2 {[%clk
0:00:03.7]} 37... Nf3 {[%clk 0:00:08.7]} 38. Qe2 {[%clk 0:00:02.5]} 38... b5
{[%clk 0:00:07.1]} 39. Rg4 {[%clk 0:00:03]} 39... Ne5 {[%clk 0:00:06.6]} 40. Qe4
{[%clk 0:00:03.1]} 40... Nxg4 {[%clk 0:00:06.1]} 41. Qxg4 {[%clk 0:00:04]} 41...
Re8 {[%clk 0:00:06.5]} 42. Bd4 {[%clk 0:00:04.6]} 42... Re7 {[%clk 0:00:06.4]}
43. Ne3 {[%clk 0:00:04.8]} 43... Kf8 {[%clk 0:00:04.4]} 44. Nf5 {[%clk
0:00:05.1]} 44... Rf7 {[%clk 0:00:04]} 45. Nxd6 {[%clk 0:00:04.8]} 45... cxd6
{[%clk 0:00:04.9]} 46. Qc8+ {[%clk 0:00:04.8]} 46... Ke7 {[%clk 0:00:05.6]} 47.
Qc7+ {[%clk 0:00:04.9]} 47... Ke8 {[%clk 0:00:04.9]} 48. Qxd6 {[%clk 0:00:04.8]}
48... Rd7 {[%clk 0:00:05.5]} 49. Qe6+ {[%clk 0:00:05]} 49... Kd8 {[%clk
0:00:05.7]} 50. Bxg7 {[%clk 0:00:04.5]} 50... Rxg7 {[%clk 0:00:05.7]} 51. d6
{[%clk 0:00:04.9]} 51... Rd7 {[%clk 0:00:05.9]} 52. Qg8# {[%clk 0:00:04.9]} 1-0